[Event "27th OIBM 2024"]
[Site "Gmund am Tegernsee"]
[Date "2024.10.27"]
[Round "2.47"]
[White "Ohler, Julius"]
[Black "Brychcy, Felix"]
[Result "0-1"]
[ECO "D06"]
[WhiteElo "2231"]
[BlackElo "1999"]
[Annotator "RC"]
[PlyCount "132"]
[EventDate "2024.09.16"]
[EventType "swiss"]
[EventCountry "GER"]
[SourceTitle "playchess.com"]
[Source "ChessBase"]
[SourceQuality "1"]
[TimeControl "40/5400+30:1800+30"]

1. d4 {[%emt 0:00:02]} d5 {[%emt 0:00:05]} 2. c4 {[%emt 0:00:04]} c5 {[%emt 0:00:03]} 3. dxc5 {[%emt 0:02:24]} e6 {[%emt 0:00:32]} 4. e3 {[%emt 0:09:00]} dxc4 {[%emt 0:11:05]} 5. Qa4+ {[%emt 0:07:51]} Nc6 {[%emt 0:03:01]} 6. Qxc4 {[%emt 0:04:44]} Qa5+ {[%emt 0:00:58]} 7. Bd2 {[%emt 0:00:46]} Qxc5 {[%emt 0:00:11]} 8. Na3 {[%emt 0:00:36]} Qxc4 {[%emt 0:14:40]} 9. Bxc4 {[%emt 0:00:09]} a6 {[%emt 0:00:20]} 10. Rc1 {[%emt 0:01:40]} Nf6 {[%emt 0:06:16]} 11. Nf3 {[%emt 0:02:52]} Bd7 {[%emt 0:14:23]} 12. O-O {[%emt 0:07:12]} Ne4 {[%emt 0:03:17]} 13. Rfd1 {[%emt 0:00:26]} Nxd2 {[%emt 0:00:07]} 14. Nxd2 {[%emt 0:03:28]} Na5 {[%emt 0:23:02]} 15. Ne4 {[%emt 0:17:33]} Bxa3 {[%emt 0:05:55]} 16. bxa3 {[%emt 0:00:05]} Nxc4 {[%emt 0:00:04]} 17. Rxc4 {[%emt 0:00:05]} Bc6 {[%emt 0:00:09]} 18. Nd6+ {[%emt 0:00:06]} Kf8 {[%emt 0:01:08]} 19. e4 {[%emt 0:03:46]} e5 {[%emt 0:04:07]} 20. f4 {[%emt 0:04:14]} exf4 {[%emt 0:02:46]} 21. Rb1 {[%emt 0:08:12]} g5 {[%emt 0:04:15]} 22. Nxb7 {[%emt 0:00:11]} Bxb7 {[%emt 0:00:08]} 23. Rxb7 {[%emt 0:00:06]} Kg7 {[%emt 0:00:40]} 24. Rc5 {[%emt 0:01:52]} h6 {[%emt 0:00:58]} 25. h4 {[%emt 0:00:26]} Kg6 {[%emt 0:01:51]} 26. Rf5 {[%emt 0:03:40]} Rhe8 {[%emt 0:00:39]} 27. hxg5 {[%emt 0:06:15]} hxg5 {[%emt 0:00:04]} 28. Rfxf7 {[%emt 0:01:39]} Rxe4 {[%emt 0:00:08]} 29. Rbe7 {[%emt 0:00:11]} Ra4 {[%emt 0:01:04]} 30. Rg7+ {[%emt 0:00:19]} Kf5 {[%emt 0:00:27]} 31. Ref7+ {[%emt 0:00:48]} Kg4 {[%emt 0:00:37]} 32. Rd7 {[%emt 0:00:09]} Ra5 {[%emt 0:00:33]} 33. Rd3 {[%emt 0:01:05]} Rb8 {[%emt 0:00:17]} 34. Rgd7 {[%emt 0:01:23]} Rb1+ {[%emt 0:01:18]} 35. Kf2 {[%emt 0:01:45]} Rb2+ {[%emt 0:00:09]} 36. Rd2 {[%emt 0:00:04]} Rxd2+ {[%emt 0:00:10]} 37. Rxd2 {[%emt 0:00:04]} Rxa3 {[%emt 0:00:02]} 38. Rc2 {[%emt 0:00:33]} Ra5 {[%emt 0:02:33]} 39. Kg1 {[%emt 0:02:01]} Ra3 {[%emt 0:00:45]} 40. Kf2 {[%emt 0:00:08]} Ra5 {[%emt 0:00:54]} 41. Kg1 {[%emt 0:30:23]} Rb5 {[%emt 0:30:44]} 42. Rc3 {[%emt 0:01:13]} Ra5 {[%emt 0:00:00]} 43. Rc2 {[%emt 0:00:00]} Ra4 {[%emt 0:01:35]} 44. Kf2 {[%emt 0:00:00]} a5 {[%emt 0:00:00]} 45. Kg1 {[%emt 0:00:00]} Rb4 {[%emt 0:00:00]} 46. Rc3 {[%emt 0:00:00]} Ra4 {[%emt 0:00:00]} 47. a3 {[%emt 0:00:00]} Rd4 {[%emt 0:00:00]} 48. Kh2 {[%emt 0:00:00]} a4 {[%emt 0:00:00]} 49. Kg1 {[%emt 0:00:00]} Rd1+ {[%emt 0:00:00]} 50. Kf2 {[%emt 0:00:00]} Rd2+ {[%emt 0:00:00]} 51. Kg1 {[%emt 0:00:00]} Ra2 {[%emt 0:00:00]} 52. Rd3 {[%emt 0:00:00]} Kh4 {[%emt 0:00:00]} 53. Rh3+ {[%emt 0:00:00]} Kg4 {[%emt 0:00:00]} 54. Rc3 {[%emt 0:00:00]} Kh5 {[%emt 0:00:00]} 55. Kf1 {[%emt 0:00:00]} g4 {[%emt 0:01:46]} 56. Rc4 {[%emt 0:00:00]} Rxa3 {[%emt 0:00:10]} 57. Rxf4 {[%emt 0:00:00]} Kh4 {[%emt 0:01:15]} 58. Kg1 {[%emt 0:00:00]} Kg3 {[%emt 0:00:35]} 59. Rf1 {[%emt 0:00:00]} Ra2 {[%emt 0:02:10]} 60. Kh1 {[%emt 0:00:00]} a3 {[%emt 0:00:15]} 61. Rd1 {[%emt 0:00:00]} Kh4 {[%emt 0:00:15]} 62. Rd4 {[%emt 0:00:00]} Rb2 {[%emt 0:01:06]} 63. Ra4 {[%emt 0:00:00]} Rb3 {[%emt 0:00:45]} 64. Kh2 {[%emt 0:00:00]} Rc3 {[%emt 0:00:14]} 65. Rb4 {[%emt 0:00:00]} a2 {[%emt 0:00:51]} 66. Ra4 {[%emt 0:00:00]} Rc2 {[%emt 0:00:14]} 0-1

[Event "27th OIBM 2024"]
[Site "Gmund am Tegernsee"]
[Date "2024.10.27"]
[Round "2.48"]
[White "Ashwath Kaushik"]
[Black "Markmann, Ulrich"]
[Result "1/2-1/2"]
[ECO "B33"]
[WhiteElo "1980"]
[BlackElo "2230"]
[Annotator "RC"]
[PlyCount "85"]
[EventDate "2024.09.16"]
[EventType "swiss"]
[EventCountry "GER"]
[SourceTitle "playchess.com"]
[Source "ChessBase"]
[SourceQuality "1"]
[TimeControl "40/5400+30:1800+30"]

1. e4 {[%emt 0:00:09]} c5 {[%emt 0:00:07]} 2. Nf3 {[%emt 0:00:11]} e6 {[%emt 0:00:09]} 3. d4 {[%emt 0:00:15]} cxd4 {[%emt 0:00:10]} 4. Nxd4 {[%emt 0:00:12]} Nf6 {[%emt 0:00:09]} 5. Nc3 {[%emt 0:00:10]} Nc6 {[%emt 0:00:09]} 6. Ndb5 {[%emt 0:00:15]} d6 {[%emt 0:01:18]} 7. Bf4 {[%emt 0:00:10]} e5 {[%emt 0:00:07]} 8. Bg5 {[%emt 0:00:05]} a6 {[%emt 0:00:05]} 9. Na3 {[%emt 0:00:13]} b5 {[%emt 0:00:06]} 10. Nd5 {[%emt 0:00:20]} Be7 {[%emt 0:00:15]} 11. Bxf6 {[%emt 0:00:14]} Bxf6 {[%emt 0:00:08]} 12. c4 {[%emt 0:00:13]} b4 {[%emt 0:06:02]} 13. Nc2 {[%emt 0:00:17]} a5 {[%emt 0:01:16]} 14. g3 {[%emt 0:00:59]} g6 {[%emt 0:16:05]} 15. h4 {[%emt 0:05:20]} h5 {[%emt 0:00:17]} 16. Bh3 {[%emt 0:00:45]} Bxh3 {[%emt 0:01:04]} 17. Rxh3 {[%emt 0:00:06]} Bg7 {[%emt 0:04:44]} 18. Rh1 {[%emt 0:02:54]} Rb8 {[%emt 0:13:20]} 19. b3 {[%emt 0:01:27]} Qd7 {[%emt 0:13:18]} 20. Qf3 {[%emt 0:08:01]} O-O {[%emt 0:12:17]} 21. Rd1 {[%emt 0:13:05]} f5 {[%emt 0:06:51]} 22. exf5 {[%emt 0:13:11]} Rxf5 {[%emt 0:00:30]} 23. Qe4 {[%emt 0:00:34]} Rbf8 {[%emt 0:00:59]} 24. Rd2 {[%emt 0:01:04]} Qf7 {[%emt 0:06:28]} 25. Rf1 {[%emt 0:52:50]} Nd4 {[%emt 0:01:26]} 26. Ne7+ {[%emt 0:00:00]} Qxe7 {[%emt 0:02:31]} 27. Nxd4 {[%emt 0:00:00]} R5f6 {[%emt 0:05:25]} 28. Nc2 {[%emt 0:00:00]} Bh6 {[%emt 0:00:34]} 29. Rd3 {[%emt 0:00:00]} Qa7 {[%emt 0:01:16]} 30. f3 {[%emt 0:00:00]} Kg7 {[%emt 0:08:24]} 31. Ke2 Qd7 {[%emt 0:00:00]} 32. Rg1 {[%emt 0:00:00]} Qh3 {[%emt 0:00:00]} 33. Ne1 {[%emt 0:00:00]} Qf5 {[%emt 0:00:00]} 34. Qxf5 {[%emt 0:00:00]} gxf5 {[%emt 0:00:00]} 35. Rd5 {[%emt 0:00:00]} Ra8 {[%emt 0:00:00]} 36. Rb5 {[%emt 0:00:00]} a4 {[%emt 0:00:00]} 37. g4 {[%emt 0:00:00]} fxg4 {[%emt 0:00:00]} 38. fxg4 {[%emt 0:00:00]} hxg4 {[%emt 0:00:00]} 39. Rxg4+ {[%emt 0:00:00]} Kf7 {[%emt 0:00:00]} 40. Rxb4 {[%emt 0:02:38]} axb3 {[%emt 0:00:00]} 41. a4 {[%emt 0:30:36]} b2 {[%emt 0:34:55]} 42. c5 {[%emt 0:01:57]} dxc5 {[%emt 0:00:00]} 43. Rxb2 {[%emt 0:00:00]} 1/2-1/2

[Event "27th OIBM 2024"]
[Site "Gmund am Tegernsee"]
[Date "2024.10.28"]
[Round "3.1"]
[White "Priyanka Nutakki"]
[Black "Kollars, Dmitrij"]
[Result "0-1"]
[ECO "A20"]
[WhiteElo "2289"]
[BlackElo "2647"]
[Annotator "TA"]
[PlyCount "86"]
[EventDate "2024.09.16"]
[EventType "swiss"]
[EventCountry "GER"]
[SourceTitle "playchess.com"]
[Source "ChessBase"]
[SourceQuality "1"]
[TimeControl "40/5400+30:1800+30"]

{[%evp 9,86,24,19,19,28,28,18,0,22,8,6,10,9,10,3,5,10,12,0,0,0,8,0,0,8,1,56,42,90,86,106,95,98,104,94,84,113,47,77,67,36,0,327,31,47,54,78,89,101,34,38,0,0,0,0,-165,-158,-183,-191,-262,-252,-247,-249,-399,-391,-481,-202,-1027,-398,-812,-754,-853,-777,-897,-899,-1414,-1389,-1337,-1340]} 1. c4 {[%emt 0:00:15]} e5 {[%emt 0:00:26]} 2. g3 {[%emt 0:00:13]} c6 {[%emt 0:00:56]} 3. Nf3 {[%emt 0:00:22]} e4 {[%emt 0:00:07]} 4. Nd4 {[%emt 0:00:05]} d5 {[%emt 0:00:12]} 5. cxd5 {[%emt 0:00:13]} Qxd5 {[%emt 0:00:07]} 6. Nc2 {[%emt 0:00:13]} Nf6 {[%emt 0:00:38]} 7. Nc3 {[%emt 0:00:19]} Qe5 {[%emt 0:00:07]} 8. Bg2 {[%emt 0:00:24] The position is equal.} Na6 {[%emt 0:00:56]} 9. Rb1 {[%emt 0:00:51]} h5 {[%emt 0:09:28]} 10. d3 {[%emt 0:03:14]} exd3 {[%emt 0:03:32]} 11. Qxd3 {[%emt 0:00:05]} Nc5 {[%emt 0:03:51]} 12. Qd4 {[%emt 0:05:54]} Bd6 {[%emt 0:03:57][%cal Bf8d6,Bd6e5,Be5d4][%mdl 32]} 13. b4 {[%emt 0:10:08]} (13. Qxe5+ {simplifies} Bxe5 14. Be3 Ne6 15. O-O) 13... Qxd4 {[%emt 0:07:24]} 14. Nxd4 {[%emt 0:00:02]} Be5 $1 {[%emt 0:00:19]} 15. bxc5 {[%emt 0:02:54] And now e3 would win.} Bxd4 {[%emt 0:00:06]} 16. Na4 {[%emt 0:00:04]} Nd7 {[%emt 0:09:25]} 17. Ba3 {[%emt 0:03:37][%cal Bc1a3,Ba3b4,Bb4d2][%mdl 32]} Kd8 {[%emt 0:10:54]} (17... Bf6 $11) 18. O-O $36 {[%emt 0:02:14][%mdl 2048] White is more active.} Kc7 {[%emt 0:01:02]} (18... Re8 $14 {deserves consideration.}) 19. Rfd1 $16 {[%emt 0:02:41]} Bf6 {[%emt 0:01:45]} 20. Bb4 $1 {[%emt 0:03:53]} a5 {[%emt 0:09:57]} 21. Bd2 {[%emt 0:16:44] Hoping for Nb6.} Ne5 {[%emt 0:01:22]} 22. Nb6 {[%emt 0:04:31]} Ra6 {[%emt 0:00:58] [#]} 23. h3 {[%emt 0:05:01]} (23. Nxc8 $1 $16 Rxc8 24. Bf4) 23... Bf5 {[%emt 0:05:36]} 24. Rbc1 {[%emt 0:01:48]} Rd8 {[%emt 0:02:05]} 25. Bf4 {[%emt 0:01:34] Nc4 is the strong threat.} Rd7 $2 {[%emt 0:00:47][%mdl 8192]} 26. h4 $2 (26. Nxd7 Bxd7 27. h4 Be6) (26. Rxd7+ $18 Bxd7 27. Nc4) 26... Rxd1+ $14 {[%emt 0:00:30]} 27. Rxd1 {[%emt 0:00:31]} Rxb6 {[%emt 0:00:10]} 28. cxb6+ {[%emt 0:00:08]} Kxb6 {[%emt 0:00:30]} 29. e4 {[%emt 0:00:30]} ({Better is} 29. Bg5 $16) 29... Be6 {[%emt 0:00:30]} 30. Rb1+ {[%emt 0:00:30]} Ka6 {[%emt 0:00:30]} 31. Bf1+ {[%emt 0:00:30]} b5 {[%emt 0:00:30]} 32. Bxe5 $2 {[%emt 0:00:30]} (32. a4 $11 {and White is okay.} Nc4 33. Bc7) 32... Bxe5 $11 {[%emt 0:02:09][%mdl 4096] Endgame. KRB-KB} 33. a4 {[%emt 0:08:48][%cal Ra4b5] [#]} Ba2 $1 {[%emt 0:01:50]} ({Stronger than} 33... Bd7 34. Rd1 Be6 35. f4 $11) 34. Bxb5+ {[%emt 0:15:58]} (34. Rd1 {might work better.}) 34... cxb5 $19 {[%emt 0:02:17]} 35. Rxb5 {[%emt 0:00:05]} Bd4 {[%emt 0:03:36]} 36. Rf5 {[%emt 0:00:53]} (36. Kg2 {was worth a try.}) 36... Bb3 {[%emt 0:00:30]} 37. Rxh5 {[%emt 0:00:30]} f6 {[%emt 0:00:30]} (37... Bxa4 $142 38. Rd5 Bb6) 38. Rd5 $2 {[%emt 0:00:30]} (38. Rh7 Bxa4 39. Rxg7) 38... Be5 $2 {[%emt 0:00:30]} (38... Bxd5 39. exd5 Kb6) 39. g4 $2 (39. Rd7 $2 g6 40. f4 (40. Rg7 $2 Bxa4 41. f4 Bd4+ 42. Kh2 Bb3 $19) 40... Bxa4 $19) (39. Rd8 Bxa4 40. f4) 39... Bxa4 {Black is clearly winning.} 40. f3 {[%emt 0:10:32]} Bc6 {[%emt 0:05:46]} 41. Rd3 {[%emt 0:30:10]} a4 {[%emt 0:30:10]} 42. g5 {[%emt 0:00:11]} fxg5 {[%emt 0:01:16]} 43. hxg5 {[%emt 0:00:05]} Bb2 {[%emt 0:00:10] Weighted Error Value: White=0.82/Black=0.45.  Loses game:     	White=1     	Black=1      Missed win:     	White=1     	---        Mistake:       	White=6     	Black=4      Inaccurate:     	White=2     	Black=2      OK:         	White=9     	Black=12     Best:        	---       	Black=3      Strong:       	White=1     	Black=2} 0-1

[Event "27th OIBM 2024"]
[Site "Gmund am Tegernsee"]
[Date "2024.10.28"]
[Round "3.2"]
[White "Safarli, Eltaj"]
[Black "Mitev, Valentin"]
[Result "1-0"]
[ECO "B08"]
[WhiteElo "2596"]
[BlackElo "2274"]
[Annotator "TA"]
[PlyCount "55"]
[EventDate "2024.09.16"]
[EventType "swiss"]
[EventCountry "GER"]
[SourceTitle "playchess.com"]
[Source "ChessBase"]
[SourceQuality "1"]
[TimeControl "40/5400+30:1800+30"]

{[%evp 17,55,23,14,22,29,18,37,11,26,25,20,18,23,6,18,1,60,52,116,112,118,100,157,157,354,338,478,472,583,548,510,338,465,488,495,497,899,881,850,390]} 1. e4 {[%emt 0:00:08]} g6 {[%emt 0:00:59]} 2. d4 {[%emt 0:00:20]} Bg7 {[%emt 0:00:23]} 3. Nc3 {[%emt 0:00:05]} d6 {[%emt 0:00:19]} 4. Nf3 {[%emt 0:01:39]} Nf6 {[%emt 0:00:21]} 5. Be2 {[%emt 0:00:07]} O-O {[%emt 0:00:16]} 6. O-O {[%emt 0:00:07]} Nc6 {[%emt 0:00:03]} 7. d5 {[%emt 0:00:30]} Nb8 {[%emt 0:00:07]} 8. h3 {[%emt 0:00:42]} e5 {[%emt 0:02:40]} 9. dxe6 {[%emt 0:00:49]} Bxe6 {[%emt 0:00:06]} 10. Bf4 {[%emt 0:01:00]} Nc6 {[%emt 0:03:12]} 11. Re1 {[%emt 0:00:13]} Re8 {[%emt 0:06:02]} 12. Ng5 {[%emt 0:06:43] White is slightly better.} Bd7 {[%emt 0:01:30]} 13. Bc4 {[%emt 0:00:51]} Rf8 {[%emt 0:03:49]} 14. Qd2 {[%emt 0:04:45]} Ne5 {[%emt 0:05:04]} 15. Be2 {[%emt 0:06:52]} Bc6 {[%emt 0:00:32]} 16. Rad1 {[%emt 0:01:50]} Re8 {[%emt 0:06:06]} (16... Qe7 $11) 17. Bxe5 $1 $14 {[%emt 0:12:39]} Rxe5 {[%emt 0:01:12]} (17... dxe5 $14 18. Bc4 Qxd2 19. Bxf7+ (19. Rxd2 Re7 $11) 19... Kf8 20. Rxd2 Bh6) 18. Bc4 $16 {[%emt 0:03:08]} Be8 {[%emt 0:07:42]} 19. Bb3 {[%emt 0:02:59] White is much more active.} Nh5 {[%emt 0:26:39]} (19... Qe7 $142) 20. Nf3 {[%emt 0:01:29]} Bd7 {[%emt 0:02:19] [#] Against g4. A mistake that costs the game.} (20... Re7 $16 {might work better.}) 21. g4 $18 {[%emt 0:05:29][%cal Bg2g4,Bg4h5][%mdl 32]} (21. Nxe5 Bxe5 22. Qd5 Qe8 23. Qxb7 a5 $18) 21... Rc5 {[%emt 0:08:36]} (21... Kh8 {keeps fighting.} 22. Ne2 (22. gxh5 Rxh5 23. Qe3 f6 $18) (22. Nxe5 Bxe5 23. gxh5 Qh4 $18) 22... Qe7 23. Nxe5 (23. gxh5 g5 $18) 23... Bxe5) 22. e5 {[%emt 0:03:29]} (22. gxh5 Rxh5 23. Qf4 Be8 $18) 22... Qc8 {[%emt 0:02:51][%cal Od7g4]} 23. gxh5 {[%emt 0:02:50]} Bxh3 {[%emt 0:00:20] [#] ( -> ...Qg4+)} 24. Qf4 {[%emt 0:00:17]} (24. exd6 $2 Qg4+ 25. Kh2 Qg2#) 24... dxe5 {[%emt 0:05:10]} 25. Nxe5 {[%emt 0:05:29] White is clearly winning.} Rxe5 {[%emt 0:02:09]} 26. Bxf7+ {[%emt 0:04:14]} (26. Rxe5 Bxe5 27. Qxe5 Qg4+ 28. Qg3 Qxg3+ 29. fxg3 Kg7 30. hxg6 hxg6 $18) 26... Kf8 {[%emt 0:00:09]} (26... Kh8 $142) 27. Be6+ {[%emt 0:00:20]} (27. Rxe5 Bxe5 28. Qxe5 Qg4+ 29. Qg3 Kxf7 $16 (29... Qxg3+ 30. fxg3 Kxf7 31. hxg6+ Kxg6 32. Nd5 $11)) (27. hxg6 Qg4+ 28. Qxg4 Rxe1+ 29. Rxe1 Bxg4 $14) 27... Rf5 {[%emt 0:00:05]} 28. Bxc8 {[%emt 0:01:04] Weighted Error Value: White=0.24 (precise) /Black=0.64.  Loses game:     	---       	Black=1      Mistake:       	---       	Black=5      Inaccurate:     	White=1     	Black=1      OK:         	White=5     	Black=5      Best:        	White=4     	Black=1      Strong:       	White=1     	---} (28. Qh4 $142 Rg5+ 29. Qxg5 Bxe6 30. hxg6 hxg6 31. Nd5 (31. Qxg6 Qe8 $18)) 1-0

[Event "27th OIBM 2024"]
[Site "Gmund am Tegernsee"]
[Date "2024.10.28"]
[Round "3.3"]
[White "Guth, Thomas"]
[Black "Karthik Venkataraman"]
[Result "0-1"]
[ECO "B45"]
[WhiteElo "2261"]
[BlackElo "2581"]
[Annotator "TA"]
[PlyCount "124"]
[EventDate "2024.09.16"]
[EventType "swiss"]
[EventCountry "GER"]
[SourceTitle "playchess.com"]
[Source "ChessBase"]
[SourceQuality "1"]
[TimeControl "40/5400+30:1800+30"]

{[%evp 17,124,-30,-16,-17,0,0,20,-13,0,-20,0,0,0,-40,-27,-37,-37,-95,-54,-91,-92,-114,-131,-170,-135,-202,-197,-202,-198,-256,-257,-255,-239,-270,-263,-269,-280,-272,-278,-330,-287,-313,-17,-7,11,12,11,8,10,0,0,0,10,0,0,0,25,11,25,5,34,6,12,29,12,3,5,0,12,12,17,13,8,8,27,-48,-49,-105,-98,-98,-102,-112,-112,-131,-152,-550,-541,-563,-561,-581,-502,-947,-942,-900,-663,-1295,-1258,-5377,-2156,-5736,-4614,-12828,-12837,-29987,-29988,-29988,-29989,-29989,-29989]} 1. e4 {[%emt 0:00:03]} c5 {[%emt 0:00:06]} 2. Nf3 {[%emt 0:00:06]} e6 {[%emt 0:00:05]} 3. d4 {[%emt 0:00:24]} cxd4 {[%emt 0:00:06]} 4. Nxd4 {[%emt 0:00:05]} Nf6 {[%emt 0:00:34]} 5. Nc3 {[%emt 0:00:24]} Nc6 {[%emt 0:00:18]} 6. Ndb5 {[%emt 0:00:32]} Bc5 {[%emt 0:00:35]} 7. Nd6+ {[%emt 0:04:45]} Ke7 {[%emt 0:00:05]} 8. Nxc8+ {[%emt 0:01:17]} Rxc8 {[%emt 0:00:08]} 9. Be2 {[%emt 0:02:27]} a6 {[%emt 0:11:30]} 10. O-O {[%emt 0:01:36]} Qc7 {[%emt 0:02:45]} 11. Kh1 {[%emt 0:02:53]} Rhd8 {[%emt 0:00:26]} 12. Bg5 {[%emt 0:01:04] The position is equal.} (12. Bd3 {simplifies} Kf8 13. Bg5 Be7 14. f4) 12... h6 $1 {[%emt 0:00:46]} 13. Bxf6+ {[%emt 0:04:29]} gxf6 {[%emt 0:00:46]} 14. f4 {[%emt 0:01:49]} Bb4 {[%emt 0:01:48]} 15. Nd5+ {[%emt 0:09:41]} exd5 {[%emt 0:00:24]} 16. exd5 {[%emt 0:00:10]} Nb8 {[%emt 0:03:48]} 17. Bd3 {[%emt 0:01:48]} (17. Qd4 $15 Qd6 18. Qe4+ Kf8 19. c3 (19. Qh7 f5 $11)) 17... Rf8 {[%emt 0:03:07]} 18. c3 {[%emt 0:02:37]} Bd6 {[%emt 0:01:36]} 19. Qe2+ {[%emt 0:11:53]} Kd8 {[%emt 0:03:20]} 20. Rae1 {[%emt 0:01:00]} a5 {[%emt 0:04:04][%cal Oc7b6]} (20... Bxf4 21. Qe7#) 21. Qe4 {[%emt 0:07:49]} (21. Qh5 $17) 21... Qb6 $19 {[%emt 0:00:54]} 22. Qf5 {[%emt 0:06:56]} Kc7 {[%emt 0:02:18]} (22... Qxb2 $2 23. Qxf6+ Kc7 24. Rb1 $18) 23. a4 {[%emt 0:12:05]} (23. Rb1 {was necessary.}) 23... Rce8 {[%emt 0:02:53] Strongly threatening ...Rxe1.} (23... Qxb2 24. Rb1 Qa3 (24... Qxc3 $2 25. Rfc1 $18) 25. Bb5) 24. Rb1 {[%emt 0:07:34]} Na6 {[%emt 0:06:37][%cal Bb8a6,Ba6b4,Bb4d5][%mdl 32]} 25. Bb5 {[%emt 0:00:19]} Re7 {[%emt 0:01:50]} 26. b4 {[%emt 0:01:45]} axb4 {[%emt 0:00:22]} 27. cxb4 {[%emt 0:00:18]} Nxb4 {[%emt 0:00:39]} 28. Rfc1+ {[%emt 0:00:31]} Kb8 {[%emt 0:00:16]} 29. Qxf6 {[%emt 0:01:41]} Rfe8 $2 {[%emt 0:06:42]} (29... Nxd5 $19 30. Qxh6 Rc8 (30... Bxf4 $2 31. Qxf8+ Ka7 32. Rc8 $18) 31. Rxc8+ Kxc8 32. Qh8+ (32. Bxd7+ $2 Kxd7 33. Qh3+ Kc7 $19) 32... Kc7) 30. Bf1 $1 $11 {[%emt 0:00:20] And now a5 would win.} Nxd5 {[%emt 0:13:52]} (30... Re4 {is more complex.} 31. a5 Rxf4 32. Re1 Rxf1+ 33. Qxf1 Rxe1 34. axb6 Rxf1+ 35. Rxf1 Bc5) 31. Rxb6 {[%emt 0:00:27]} (31. Qxh6 $2 Re6 32. Qg5 Nb4 $19) 31... Nxf6 {[%emt 0:00:05]} 32. Rxd6 {[%emt 0:00:05]} Re6 {[%emt 0:02:56]} 33. Rdd1 {[%emt 0:02:01]} Re4 {[%emt 0:01:28][%csl LRa4,LRf4]} 34. Bb5 {[%emt 0:01:36]} R8e6 {[%emt 0:04:17]} 35. Kg1 {[%emt 0:03:14]} d5 {[%emt 0:01:19]} 36. g3 {[%emt 0:02:35]} Re3 {[%emt 0:00:26]} 37. Rb1 {[%emt 0:01:27]} h5 {[%emt 0:00:26]} 38. a5 {[%emt 0:01:03]} Ne4 {[%emt 0:02:28] Hoping for ...Nc3.} 39. Rd3 {[%emt 0:02:58]} (39. Rxd5 Nc3 40. Rd8+ (40. Rxh5 $2 {too greedy.} Nxb1 41. a6 bxa6 $19) 40... Kc7 41. Rd7+ Kc8 $17) 39... Nc3 {[%emt 0:00:40]} 40. Rxe3 {[%emt 0:00:57]} Rxe3 {[%emt 0:00:06][%mdl 4096] Endgame. KRB-KRN} 41. Rb2 {[%emt 0:31:06]} Kc7 {[%emt 0:30:48] Prevents Bc6} 42. Bf1 {[%emt 0:04:36]} Re6 {[%emt 0:02:01]} 43. Rb3 {[%emt 0:00:00]} Rc6 {[%emt 0:00:00]} 44. Bb5 {[%emt 0:00:00]} Rc5 {[%emt 0:00:00]} 45. Be8 {[%emt 0:00:00]} d4 {[%emt 0:00:00] aiming for ...d3.} 46. Kf2 {[%emt 0:00:00]} ({White should try} 46. Bxf7 $11 Rxa5 47. Kg2) 46... Ne4+ $1 $15 {[%emt 0:00:00]} 47. Ke2 {[%emt 0:00:00]} (47. Ke1 $15) 47... Nd6 $17 {[%emt 0:00:00]} ({Don't take} 47... Rxa5 48. Bxf7 Ra2+ 49. Ke1 Rxh2 50. Rd3 $15) 48. Ba4 {[%emt 0:00:00]} Rxa5 {[%emt 0:00:00]} 49. Rb4 {[%emt 0:00:00]} b5 {[%emt 0:00:00]} 50. Bb3 {[%emt 0:00:00]} Ra3 {[%emt 0:00:00]} 51. Kd3 $2 {[%emt 0:00:00] Now White is beyond hope.} (51. Bd5 $17 {is more resistant.}) 51... Kb6 $1 $19 {[%emt 0:00:00] ...Kc5 would now be deadly.} 52. Kxd4 {[%emt 0:00:00] [#]} Ka5 $1 {[%emt 0:00:00]} 53. Kc3 {[%emt 0:00:00] [#]} Nb7 $1 {[%emt 0:00:00] White must now prevent ...Nc5.} 54. Rd4 {[%emt 0:00:00]} (54. f5 $142) 54... Nc5 {[%emt 0:00:00]} 55. Rd5 {[%emt 0:00:00]} Nxb3 {[%emt 0:00:00] KRN-KR} 56. Kb2 {[%emt 0:00:00]} Ka4 {[%emt 0:00:00]} 57. Rxh5 {[%emt 0:00:00]} Na5 {[%emt 0:00:00]} 58. Rh8 {[%emt 0:00:00]} b4 {[%emt 0:00:00]} 59. Ra8 {[%emt 0:00:00]} Rf3 {[%emt 0:00:00] ( -> ...Rf2+)} 60. Ra7 {[%emt 0:00:00]} Rf2+ {[%emt 0:00:00] Black mates.} 61. Kc1 {[%emt 0:00:00]} b3 {[%emt 0:00:00]} 62. Ra8 {[%emt 0:00:00]} Kb4 {[%emt 0:00:00] Weighted Error Value: White=0.76/Black=0.23 (precise) .  Loses game:     	White=1     	---        Missed win:     	---       	Black=1      Mistake:       	White=6     	---        Inaccurate:     	White=4     	Black=2      OK:         	White=10    	Black=16     Best:        	White=2     	Black=8      Strong:       	White=1     	Black=5} 0-1